lending/lending_fUSD_20240806
["ID","MTS","AMOUNT","RATE_DAILY","PERIOD"]
[334315691,1722958213892,-154.67410059,0.00024657,7]
[334315692,1722958213945,-500.0,0.00024657,7]
[334315693,1722958213996,-500.0,0.00024657,7]
[334315694,1722958214046,-500.0,0.00024657,7]
[334315695,1722958214097,-500.0,0.00024657,7]
[334315696,1722958214149,-500.0,0.00024657,7]
[334315697,1722958214204,-500.0,0.00024657,7]
[334315698,1722958214259,-500.0,0.00024657,7]
[334315699,1722958214321,-500.0,0.00024657,7]
[334315700,1722958214377,-500.0,0.00024657,7]
[334315701,1722958214432,-529.54010461,0.00024657,7]
[334315702,1722958214486,-500.0,0.00024657,7]
[334315703,1722958214538,-201.53030657,0.00024657,7]
[334315704,1722958214590,-500.0,0.00024657,7]
[334315705,1722958214643,-500.0,0.00024657,7]
[334315706,1722958214696,-500.0,0.00024657,7]
[334315707,1722958214749,-500.0,0.00024657,7]
[334315708,1722958214797,-500.0,0.00024657,7]
[334315709,1722958214846,-618.88475184,0.00024657,7]
[334315710,1722958214895,-500.0,0.00024657,7]
[334315711,1722958214945,-548.67509636,0.00024657,7]
[334315712,1722958214993,-500.0,0.00024657,7]
[334315713,1722958215042,-500.0,0.00024657,7]
[334315714,1722958215092,-500.0,0.00024657,7]
[334315715,1722958215145,-500.0,0.00024657,7]
[334315716,1722958215195,-500.0,0.00024657,7]
[334315717,1722958215245,-500.0,0.00024657,7]
[334315718,1722958215295,-500.0,0.00024657,7]
[334315719,1722958215348,-508.78637418,0.00024657,7]
[334315720,1722958215398,-500.0,0.00024657,7]
[334315721,1722958215451,-500.0,0.00024657,7]
[334315722,1722958215503,-407.03342341,0.00024657,7]
[334315723,1722958215552,-501.4094139,0.00024657,7]
[334315724,1722958215606,-500.0,0.00024657,7]
[334315725,1722958215662,-500.0,0.00024657,7]
[334315726,1722958215716,-500.0,0.00024657,7]
[334315727,1722958215770,-500.0,0.00024657,7]
[334315728,1722958215826,-500.0,0.00024657,7]
[334315729,1722958215877,-500.0,0.00024657,7]
[334315730,1722958215928,-500.0,0.00024657,7]
[334315731,1722958215983,-507.34607958,0.00024657,7]
[334315732,1722958216034,-500.0,0.00024657,7]
[334315733,1722958216082,-500.0,0.00024657,7]
[334315734,1722958216131,-500.0,0.00024657,7]
[334315735,1722958216182,-540.2150529,0.00024657,7]
[334315736,1722958216230,-500.0,0.00024657,7]
[334315737,1722958216278,-500.0,0.00024657,7]
[334315738,1722958216326,-500.0,0.00024657,7]
[334315739,1722958216376,-500.0,0.00024657,7]
[334315740,1722958216430,-500.0,0.00024657,7]
[334315741,1722958216482,-500.0,0.00024657,7]
[334315742,1722958216533,-500.0,0.00024657,7]
[334315743,1722958216583,-211.55632178,0.00024657,7]
[334315744,1722958216634,-500.0,0.00024657,7]
[334315745,1722958216684,-500.0,0.00024657,7]
[334315746,1722958216738,-500.0,0.00024657,7]
[334315747,1722958216793,-500.0,0.00024657,7]
[334315748,1722958216844,-500.0,0.00024657,7]
[334315749,1722958216898,-500.0,0.00024657,7]
[334315750,1722958216948,-487.5828812,0.00024657,7]
[334315751,1722958216999,-500.0,0.00024657,7]
[334315752,1722958217332,-500.0,0.00024657,7]
[334315753,1722958217381,-503.62555641,0.00024657,7]
[334315754,1722958217433,-500.0,0.00024657,7]
[334315755,1722958217489,-500.0,0.00024657,7]
[334315756,1722958217541,-500.0,0.00024657,7]
[334315757,1722958217592,-500.0,0.00024657,7]
[334315758,1722958217640,-500.0,0.00024657,7]
[334315759,1722958217688,-500.0,0.00024657,7]
[334315760,1722958217739,-500.0,0.00024657,7]
[334315761,1722958217790,-500.0,0.00024657,7]
[334315762,1722958217837,-500.0,0.00024657,7]
[334315763,1722958217884,-500.0,0.00024657,7]
[334315764,1722958217934,-304.8757196,0.00024657,7]
[334315765,1722958217982,-500.0,0.00024657,7]
[334315766,1722958218030,-500.0,0.00024657,7]
[334315767,1722958218078,-500.0,0.00024657,7]
[334315768,1722958218130,-500.0,0.00024657,7]
[334315769,1722958218181,-500.0,0.00024657,7]
[334315770,1722958218232,-500.0,0.00024657,7]
[334315771,1722958218283,-508.0676832,0.00024657,7]
[334315772,1722958218335,-500.0,0.00024657,7]
[334315773,1722958218383,-500.0,0.00024657,7]
[334315774,1722958218432,-500.0,0.00024657,7]
[334315775,1722958218483,-500.0,0.00024657,7]
[334315776,1722958218532,-500.0,0.00024657,7]
[334315777,1722958218582,-500.0,0.00024657,7]
[334315778,1722958218630,-300.77045925,0.00024657,7]
[334315779,1722958218680,-500.0,0.00024657,7]
[334315780,1722958218730,-500.0,0.00024657,7]
[334315781,1722958218781,-500.0,0.00024657,7]
[334315782,1722958218839,-500.0,0.00024657,7]
[334315783,1722958218890,-500.53111851,0.00024657,7]
[334315784,1722958218944,-500.0,0.00024657,7]
[334315785,1722958218998,-500.0,0.00024657,7]
[334315786,1722958219050,-500.0,0.00024657,7]
[334315787,1722958219103,-500.0,0.00024657,7]
[334315788,1722958219159,-510.1387034,0.00024657,7]
[334315789,1722958219213,-1844.97,0.00024657,7]
[334315790,1722958219265,-1844.97,0.00024657,7]
[334315791,1722958219324,-1844.97,0.00024657,7]
[334315792,1722958219379,-500.0,0.00024657,7]
[334315793,1722958219437,-500.0,0.00024657,7]
[334315794,1722958219492,-1844.97,0.00024657,7]
[334315795,1722958219545,-500.0,0.00024657,7]
[334315796,1722958219600,-1844.97,0.00024657,7]
[334315797,1722958219650,-1844.97,0.00024657,7]
[334315798,1722958219700,-500.0,0.00024657,7]
[334315799,1722958219752,-500.0,0.00024657,7]
[334315800,1722958219801,-1844.97,0.00024657,7]
[334315801,1722958219852,-504.90311026,0.00024657,7]
[334315802,1722958219907,-500.0,0.00024657,7]
[334315803,1722958219967,-1844.97,0.00024657,7]
[334315804,1722958220022,-500.0,0.00024657,7]
[334315805,1722958220085,-1844.97,0.00024657,7]
[334315806,1722958220138,-500.0,0.00024657,7]
[334315807,1722958220190,-1844.97,0.00024657,7]
[334315808,1722958220244,-500.0,0.00024657,7]
[334315809,1722958220299,-1844.97,0.00024657,7]
[334315810,1722958220355,-500.0,0.00024657,7]
[334315811,1722958220407,-500.0,0.00024657,7]
[334315812,1722958220460,-1844.97,0.00024657,7]
[334315813,1722958220513,-1844.97,0.00024657,7]
[334315814,1722958220563,-500.0,0.00024657,7]
[334315815,1722958220619,-1844.97,0.00024657,7]
[334315816,1722958220671,-510.86436568,0.00024657,7]
[334315817,1722958220722,-1844.97,0.00024657,7]
[334315818,1722958220772,-1844.97,0.00024657,7]
[334315819,1722958220826,-500.0,0.00024657,7]
[334315820,1722958220876,-1844.97,0.00024657,7]
[334315821,1722958220924,-500.0,0.00024657,7]
[334315822,1722958220973,-1844.97,0.00024657,7]
[334315823,1722958221024,-254.6670845,0.00024657,7]
[334315824,1722958221078,-500.0,0.00024657,7]
[334315825,1722958221127,-500.0,0.00024657,7]
[334315826,1722958221177,-500.0,0.00024657,7]
[334315827,1722958221225,-505.00586106,0.00024657,7]
[334315828,1722958221274,-500.0,0.00024657,7]
[334315829,1722958221328,-500.0,0.00024657,7]
[334315830,1722958221380,-500.0,0.00024657,7]
[334315831,1722958221430,-502.51478833,0.00024657,7]
[334315832,1722958221481,-500.0,0.00024657,7]
[334315833,1722958221531,-500.0,0.00024657,7]
[334315834,1722958221586,-500.0,0.00024657,7]
[334315835,1722958221640,-500.0,0.00024657,7]
[334315836,1722958221693,-500.0,0.00024657,7]
[334315837,1722958221749,-500.0,0.00024657,7]
[334315838,1722958221800,-500.0,0.00024657,7]
[334315839,1722958221851,-307.29526391,0.00024657,7]
[334315840,1722958221901,-500.0,0.00024657,7]
[334315841,1722958221952,-280.99759542,0.00024657,7]
[334315842,1722958222001,-500.0,0.00024657,7]
[334315843,1722958222050,-500.0,0.00024657,7]
[334315844,1722958222105,-164.58121316,0.00024657,7]
[334315862,1722958232314,-300.0,0.00010399,2]
[334315863,1722958232324,-183.35,0.00010399,2]
[334315864,1722958232341,-116.65,0.00010399,2]
[334315865,1722958232351,-2050.3681534,0.000104,2]
[334315866,1722958232362,-133.1774666,0.000104,2]
[334315867,1722958232372,-117.16033893,0.000104,2]
[334315868,1722958232384,-34.80116724,0.000104,2]
[334315869,1722958232393,-152.35222135,0.000104,2]
[334315870,1722958232402,-170.82621958,0.000104,2]
[334315871,1722958232411,-200.0,0.00010473,2]
[334315872,1722958232422,-200.0,0.00010473,2]
[334315873,1722958232431,-113.57313573,0.00010499,2]
[334315874,1722958232443,-69.14226827,0.00010499,2]
[334315875,1722958232452,-2668.19265634,0.000105,2]
[334315876,1722958232464,-1368.4452503,0.000105,2]
[334315877,1722958232475,-25266.23305931,0.000105,2]
[334315878,1722958232487,-3182.66143813,0.000105,2]
[334315879,1722958232499,-487.43728019,0.000105,2]
[334315880,1722958232510,-3100.0,0.000105,2]
[334315881,1722958232522,-988.81762048,0.000105,2]
[334315882,1722958232534,-6064.22891518,0.000105,2]
[334315883,1722958232546,-1357.62885533,0.000105,2]
[334315884,1722958232559,-3364.86830082,0.000105,2]
[334315885,1722958232571,-967.08683004,0.000105,2]
[334315886,1722958232590,-570.09,0.000105,2]
[334315914,1722958238271,-317.83516155,0.000104,2]
[334315915,1722958238283,-3206.96320326,0.000105,2]
[334315916,1722958238295,-6354.96041321,0.000105,2]
[334315917,1722958238309,-84100.21079213,0.000105,2]
[334315918,1722958238497,-573.2828905,0.000105,2]
[334315919,1722958238509,-822.49017547,0.000105,2]
[334315926,1722958240885,-1952.34165106,0.000105,2]
[334315975,1722958244381,-6093.98653873,0.000105,2]
[334315976,1722958244392,-303144.61468863,0.000105,2]
[334315978,1722958246792,-327.03098239,0.000105,2]
[334315979,1722958246808,-1078.57073008,0.000105,2]
[334315980,1722958246823,-711.38074383,0.000105,2]
[334315981,1722958246850,-549.85659396,0.000105,2]
[334316136,1722958391895,1000.0,0.00026849,120]
[334316137,1722958393488,1000.0,0.00026849,120]
[334316138,1722958399422,500.0,0.00024932,120]
[334316139,1722958440119,152.6,8.219e-05,2]
[334316140,1722958660510,1032.8906,0.00027,120]
[334316141,1722958674167,193.51,9.067e-05,2]
[334316142,1722958853625,107.78653472,9.059e-05,2]
[334316143,1722958853647,142.21346528,9.059e-05,2]
[334316144,1722958991188,1000.0,0.00026849,120]
[334316145,1722958991560,1000.0,0.00026849,120]
[334316146,1722959002068,181.35,9.05e-05,2]
[334316147,1722959014552,152.6,8.219e-05,2]
[334316148,1722959120384,500.0,0.00027,120]
[334316149,1722959134875,262.4,9.028e-05,2]
[334316150,1722959226949,155.0,9e-05,2]
[334316188,1722959432449,-180.757277,9.726e-05,2]
[334316189,1722959432459,-150.0,9.726e-05,2]
[334316190,1722959432471,-375.05,9.749e-05,2]
[334316191,1722959432481,-237.85220872,9.75e-05,2]
[334316192,1722959432493,-499.60047608,9.75e-05,2]
[334316193,1722959432504,-0.1473152,9.75e-05,2]
[334316194,1722959432514,-375.05,9.752e-05,2]
[334316195,1722959432523,-122.07688889,9.754e-05,2]
[334316196,1722959432575,-252.97311111,9.754e-05,2]
[334316197,1722959432586,-212.02688889,9.757e-05,2]
[334316198,1722959432598,-163.02311111,9.757e-05,2]
[334316199,1722959432607,-271.16850362,9.759e-05,2]
[334316230,1722959440197,-401.91325032,9.752e-05,2]
[334316231,1722959440212,-807.65271172,9.752e-05,2]
[334316232,1722959440223,-103.88149638,9.759e-05,2]
[334316233,1722959440233,-375.05,9.762e-05,2]
[334316234,1722959440243,-219.88,9.764e-05,2]
[334316235,1722959440254,-350.40528404,9.764e-05,2]
[334316236,1722959440268,-149.58471596,9.764e-05,2]
[334316237,1722959440278,-1313.08,9.764e-05,2]
[334316238,1722959440288,-1201.76,9.764e-05,2]
[334316239,1722959440298,-358.57528403,9.764e-05,2]
[334316240,1722959440317,-264.85471597,9.764e-05,2]
[334316241,1722959440326,-375.05,9.765e-05,2]
[334316242,1722959440336,-302.76,9.765e-05,2]
[334316243,1722959440346,-599.07,9.765e-05,2]
[334316244,1722959440356,-375.05,9.767e-05,2]
[334316245,1722959440366,-256.49942181,9.77e-05,2]
[334316246,1722959440378,-118.55057819,9.77e-05,2]
[334316247,1722959440388,-375.05,9.772e-05,2]
[334316249,1722959440398,-375.05,9.775e-05,2]
[334316250,1722959440407,-375.05,9.777e-05,2]
[334316251,1722959440417,-375.05,9.78e-05,2]
[334316252,1722959440427,-375.05,9.783e-05,2]
[334316253,1722959440436,-375.05,9.785e-05,2]
[334316254,1722959440446,-375.05,9.788e-05,2]
[334316256,1722959440455,-426.07,9.79e-05,2]
[334316258,1722959440466,-530.62,9.79e-05,2]
[334316260,1722959440475,-375.05,9.79e-05,2]
[334316261,1722959440485,-375.05,9.793e-05,2]
[334316263,1722959440495,-375.05,9.796e-05,2]
[334316265,1722959440505,-150.0,9.798e-05,2]
[334316267,1722959440515,-375.05,9.798e-05,2]
[334316270,1722959440525,-530.62,9.878e-05,2]
[334316272,1722959440535,-426.07,9.878e-05,2]
[334316274,1722959440545,-530.62,9.93e-05,2]
[334316276,1722959440556,-500.0,0.0001,2]
[334316278,1722959440565,-500.0,0.0001,2]
[334316280,1722959440576,-305.4,0.00010078,2]
[334316282,1722959440587,-904.78,0.00010078,2]
[334316284,1722959440596,-150.0,0.00010078,2]
[334316286,1722959440607,-530.62,0.00010078,2]
[334316288,1722959440617,-852.04,0.00010078,2]
[334316290,1722959440628,-262.4,0.00010156,2]
[334316292,1722959440647,-180.757277,0.00010212,2]
[334316294,1722959440657,-327.46,0.00010235,2]
[334316296,1722959440667,-2546.8504,0.000104,2]
[334316298,1722959440676,-4491.1038,0.000104,2]
[334316300,1722959440690,-1000.0,0.000104,2]
[334316301,1722959440699,-1033.1993,0.000104,2]
[334316302,1722959440710,-175.10094526,0.000104,2]
[334316303,1722959440719,-360.81451255,0.000104,2]
[334316304,1722959440732,-1456.65775215,0.000104,2]
[334316305,1722959440741,-216.31395803,0.000104,2]
[334316306,1722959440751,-317.83516156,0.000104,2]
[334316307,1722959440761,-545.13431228,0.000104,2]
[334316308,1722959440769,-2042.23091395,0.000104,2]
[334316309,1722959440777,-200.0,0.00010473,2]
[334316310,1722959440785,-200.0,0.00010473,2]
[334316311,1722959440792,-200.0,0.00010473,2]
[334316312,1722959440802,-2000.0,0.0001049,2]
[334316313,1722959440812,-1349.471328,0.00010497,2]
[334316314,1722959440822,-182.71540401,0.00010499,2]
[334316315,1722959440832,-1118.65632901,0.00010499,3]
[334316316,1722959440842,-899.85802795,0.00010499,2]
[334316318,1722959440855,-493.72436988,0.00010499,2]
[334316320,1722959440868,-555.5128716,0.00010499,2]
[334316321,1722959440877,-513.38577061,0.000105,2]
[334316322,1722959440895,-1186.12,0.000105,2]
[334316323,1722959440907,-5050.2073863,0.000105,2]
[334316324,1722959440918,-771.07115909,0.000105,2]
[334316325,1722959440929,-360.901408,0.000105,2]
[334316326,1722959440940,-1836.5905978,0.000105,2]
[334316328,1722959440957,-437.70943335,0.000105,2]
[334316330,1722959440968,-295.1000001,0.000105,2]
[334316332,1722959440979,-314.18834352,0.000105,2]
[334316334,1722959440990,-63546.45500741,0.000105,2]
[334316343,1722959441069,-668.34442602,0.000105,2]
[334316346,1722959441081,-6169.39550441,0.000105,2]
[334316348,1722959441092,-6754.06092694,0.000105,2]
[334316350,1722959441107,-1125.95213341,0.000105,2]
[334316353,1722959441122,-3100.09378254,0.000105,2]
[334316355,1722959441134,-23313.32003658,0.000105,2]
[334316357,1722959441145,-146446.83752906,0.000105,2]
[334316361,1722959441178,-3328.80000001,0.000105,2]
[334316363,1722959441190,-283.61698448,0.000105,2]
[334316365,1722959441201,-1921.53026613,0.000105,2]
[334316419,1722959443378,-23156.47971275,0.000105,2]
[334316421,1722959443390,-14427.63032875,0.000105,2]
[334316423,1722959443401,-3153.77131732,0.000105,2]
[334316425,1722959443487,-532.5,0.000105,2]
[334316426,1722959443499,-1951.24999987,0.000105,2]
[334316427,1722959443511,-2532.53,0.000105,2]
[334316428,1722959443523,-289.85574177,0.000105,2]
[334316429,1722959443536,-303144.61468863,0.000105,2]
[334316430,1722959443548,-1381.28,0.000105,2]
[334316431,1722959443596,-449.1022029,0.000105,2]
[334316432,1722959443608,-826.25901472,0.000105,2]
[334316463,1722959446588,-945.0,0.000105,2]
[334316464,1722959446601,-334441.21849915,0.000105,2]
[334316465,1722959446620,-29275.98271297,0.000105,2]
[334316466,1722959446631,-9947.00370376,0.000105,2]
[334316467,1722959446643,-3888.80813399,0.000105,2]
[334316468,1722959446729,-5917.9735355,0.000105,2]
[334316469,1722959446741,-5634.4,0.000105,2]
[334316470,1722959446757,-423.52922167,0.000105,2]
[334316471,1722959446828,-3153.88015056,0.000105,2]
[334316472,1722959446919,-661.73480014,0.000105,2]
[334316473,1722959446931,-1245.9160301,0.000105,2]
[334316486,1722959476120,152.6,8.225e-05,2]
[334316488,1722959545613,175.39,9.432e-05,2]
[334316489,1722959550775,500.0,9e-05,2]
[334316490,1722959551130,500.0,9e-05,2]
[334316491,1722959551469,500.0,9e-05,2]
[334316492,1722959551826,500.0,9e-05,2]
[334316493,1722959553701,500.0,9e-05,2]
[334316494,1722959553852,500.0,9e-05,2]
[334316495,1722959553896,500.0,9e-05,2]
[334316496,1722959553932,500.0,9e-05,2]
[334316497,1722959554185,652.0,9e-05,2]
[334316498,1722959592365,1000.0,0.00026849,120]
[334316499,1722959596533,500.0,0.00024932,120]
[334316500,1722959721033,-842.56,9.902e-05,2]
[334316501,1722959721057,-200.21586465,0.0001,2]
[334316502,1722959721081,-150.0,0.0001,2]
[334316503,1722959721105,-250.0,0.00010072,2]
[334316504,1722959721130,-169.6,0.00010157,2]
[334316505,1722959721153,-1000.0,0.000104,2]
[334316506,1722959721177,-2500.0,0.000104,2]
[334316507,1722959721200,-1000.0,0.000104,2]
[334316508,1722959721223,-2251.7332,0.000104,2]
[334316509,1722959721245,-1445.2629,0.000104,2]
[334316510,1722959721273,-12017.1867,0.000104,2]
[334316511,1722959721298,-176.85251866,0.0001045,2]
[334316512,1722959721320,-200.0,0.00010473,2]
[334316513,1722959721344,-200.0,0.00010473,2]
[334316514,1722959721366,-200.0,0.00010473,2]
[334316515,1722959721388,-150.0,0.00010499,2]
[334316516,1722959721411,-10746.58881669,0.000105,2]
[334316517,1722959999623,156.53,8.219e-05,2]
[334316518,1722960050876,3969.91653472,8.219e-05,2]
[334316519,1722960050899,6030.08346528,8.219e-05,2]
[334316536,1722960139865,3969.91653472,8.219e-05,2]
[334316537,1722960139887,6030.08346528,8.219e-05,2]
[334316586,1722960435876,150.0,0.00027,120]
[334316593,1722960454213,156.53,8.219e-05,2]
[334316596,1722960462726,150.0,0.00027,120]
[334316600,1722960515047,201.15437438,0.00027,120]
[334316652,1722960631560,-250.0,9.843e-05,2]
[334316654,1722960631569,-586.0,9.906e-05,2]
[334316656,1722960631580,-740.04118843,9.906e-05,2]
[334316657,1722960631589,-9942.51314684,9.907e-05,2]
[334316659,1722960631601,-2836.89999999,9.907e-05,2]
[334316662,1722960631636,-553.0,9.907e-05,2]
[334316663,1722960631804,-247.69444122,9.907e-05,2]
[334316664,1722960631817,-751.4995226,9.907e-05,2]
[334316665,1722960631829,-2078.87743999,9.907e-05,2]
[334316666,1722960631844,-825.77885809,9.907e-05,2]
[334316669,1722960631855,-1714.99999756,9.907e-05,2]
[334316684,1722960637508,-1264.33007237,9.907e-05,2]
[334316685,1722960637520,-464.27999997,9.907e-05,2]
[334316686,1722960637532,-1386.29309608,9.907e-05,2]
[334316687,1722960637544,-1823.83342529,9.907e-05,2]
[334316688,1722960637557,-325.95,9.938e-05,2]
[334316689,1722960637567,-9330.69442075,9.962e-05,2]
[334316690,1722960637576,-1847.50973,0.0001,2]
[334316691,1722960637586,-295.89,0.00010012,2]
[334316692,1722960637596,-150.0,0.00010399,2]
[334316693,1722960637606,-6806.8831,0.000104,2]
[334316694,1722960637615,-2224.2235,0.000104,2]
[334316695,1722960637629,-305.9417,0.000104,2]
[334316696,1722960637639,-2144.074124,0.000104,2]
[334316697,1722960637668,-16254.34948684,0.000104,2]
[334316698,1722960637680,-762.69359376,0.000104,2]
[334316699,1722960637691,-10328.5114954,0.000104,2]
[334316700,1722960637701,-1136.2729,0.000104,2]
[334316701,1722960637710,-1416.6197,0.000104,2]
[334316702,1722960637720,-150.99,0.000104,2]
[334316703,1722960637730,-545.82,0.000104,2]
[334316704,1722960637740,-150.99,0.000104,2]
[334316705,1722960637749,-317.83516155,0.000104,2]
[334316706,1722960637759,-1680.11101369,0.000104,2]
[334316707,1722960637768,-1893.0,0.00010472,2]
[334316708,1722960637778,-150.0,0.00010472,2]
[334316709,1722960637787,-493.76472936,0.00010472,2]
[334316710,1722960637799,-540.65357155,0.00010472,2]
[334316833,1722960639893,-261.45510044,0.00010472,2]
[334316889,1722960640442,-1992.12659865,0.00010472,2]
[334316891,1722960640452,-414.996,0.00010472,2]
[334316893,1722960640461,-150.99,0.00010472,2]
[334316895,1722960640470,-150.0,0.00010472,2]
[334316897,1722960640480,-7358.06183595,0.00010472,2]
[334316900,1722960640491,-551.34699981,0.00010472,2]
[334316902,1722960640502,-126.79816424,0.00010472,2]
[334316904,1722960640511,-320.76387643,0.00010472,2]
[334316906,1722960640522,-282.269,0.00010472,2]
[334316908,1722960640534,-599.96712357,0.00010472,2]
[334316910,1722960640544,-2222.922,0.00010472,2]
[334316912,1722960640556,-1075.0,0.00010472,2]
[334316914,1722960640565,-860.49,0.00010473,2]
[334316916,1722960640575,-200.0,0.00010473,2]
[334316918,1722960640584,-200.0,0.00010473,2]
[334316920,1722960640594,-200.0,0.00010473,2]
[334316922,1722960640604,-2988.92310338,0.000105,2]
[334316925,1722960640615,-6301.9788,0.000105,2]
[334316927,1722960640629,-819.45729106,0.000105,2]
[334316929,1722960640641,-3007.40000001,0.000105,2]
[334316931,1722960640652,-760815.7785378,0.000105,2]
[334316933,1722960640663,-1432.96436917,0.000105,2]
[334316936,1722960640681,-3012.3,0.000105,2]
[334316939,1722960640695,-566.18888113,0.000105,2]
[334316941,1722960640706,-362.23859919,0.000105,2]
[334316943,1722960640718,-1585.52591449,0.000105,2]
[334316945,1722960640729,-3569.6177846,0.000105,2]
[334317070,1722960642642,-562.41626868,0.000105,2]
[334317071,1722960642660,-6855.90067227,0.000105,2]
[334317072,1722960642671,-651.33802245,0.000105,2]
[334317073,1722960642682,-288.26976696,0.000105,2]
[334317074,1722960642693,-6654.157102,0.000105,2]
[334317075,1722960642704,-1224.5387,0.000105,2]
[334317076,1722960642715,-1738.02113,0.000105,2]
[334317077,1722960642726,-4112.61326764,0.000105,2]
[334317078,1722960642738,-1500.0,0.000105,2]
[334317079,1722960642749,-2325.0,0.000105,2]
[334317080,1722960642760,-704.09202264,0.000105,2]
[334317081,1722960642771,-23802.92957847,0.000105,2]
[334317083,1722960642783,-59954.43985,0.000105,2]
[334317085,1722960642794,-7160.48849537,0.000105,2]
[334317087,1722960642805,-682.39886699,0.000105,2]
[334317089,1722960642816,-1310.01098762,0.000105,2]
[334317093,1722960642854,-35202.95474457,0.000105,2]
[334317095,1722960642866,-6461.38165997,0.000105,2]
[334317096,1722960642879,-680.0,0.000105,2]
[334317166,1722960645773,-2210.0,0.000105,2]
[334317170,1722960645786,-20537.74473871,0.000105,2]
[334317173,1722960645797,-1644.15644672,0.000105,2]
[334317183,1722960645840,-950.81443091,0.000105,2]
[334317187,1722960645851,-1500.0,0.000105,2]
[334317190,1722960645863,-2325.0,0.000105,2]
[334317193,1722960645875,-31260.0,0.000105,2]
[334317198,1722960645892,-1384.71,0.000105,2]
[334317201,1722960645904,-920.11067912,0.000105,2]
[334317206,1722960645923,-3187.19048631,0.000105,2]
[334317209,1722960645937,-1657.25362323,0.000105,2]
[334317212,1722960645949,-1780.43176568,0.000105,2]
[334317214,1722960645960,-6223.91249305,0.000105,2]
[334317222,1722960646025,-8367.67451112,0.000105,2]
[334317224,1722960646036,-300.0,0.000105,2]
[334317226,1722960646048,-35354.68384835,0.000105,2]
[334317228,1722960646060,-14720.84188954,0.000105,2]
[334317231,1722960646071,-25939.78004743,0.000105,2]
[334317237,1722960646158,-1501.02251226,0.000105,2]
[334317239,1722960646171,-8461.04312,0.000105,2]
[334317307,1722960793880,500.0,0.00026849,120]
[334317308,1722960931169,1165.18,9.068e-05,2]
[334317309,1722960940420,427.19,9.068e-05,2]
[334317310,1722960972007,183.95,9.068e-05,2]
[334317312,1722961008223,190.24,8.219e-05,2]
[334317314,1722961066467,250.0,9.09e-05,2]
[334317317,1722961241450,1596.82653472,9.089e-05,2]
[334317318,1722961241471,652.77346528,9.089e-05,2]
[334317319,1722961271693,260.76,9.071e-05,2]
[334317335,1722961346429,23890.0,9.06e-05,2]
[334317337,1722961373598,167.15,9.088e-05,2]
[334317338,1722961393853,500.0,0.00024932,120]
[334317340,1722961437098,169.6,9.088e-05,2]
[334317341,1722961443085,182.58,9.088e-05,2]
[334317343,1722961529245,180.72,8.219e-05,2]
[334317344,1722961529467,150.0,9.444e-05,2]
[334317394,1722961808324,791.39,9.105e-05,2]
[334317405,1722961831776,-159.08,9.83e-05,2]
[334317406,1722961831786,-321.39,9.83e-05,2]
[334317407,1722961831796,-321.39,9.832e-05,2]
[334317408,1722961831805,-321.39,9.835e-05,2]
[334317409,1722961831815,-725.42401823,9.837e-05,2]
[334317410,1722961831825,-321.39,9.837e-05,2]
[334317411,1722961831834,-124.05440384,9.84e-05,2]
[334317412,1722961831850,-197.33559616,9.84e-05,2]
[334317413,1722961831859,-321.39,9.843e-05,2]
[334317414,1722961831873,-90.34810259,9.844e-05,2]
[334317415,1722961831884,-409.64189741,9.844e-05,2]
[334317416,1722961831894,-358.32,9.844e-05,2]
[334317417,1722961831903,-150.0,9.844e-05,2]